[Event "8. Arber-Schachopen 2019"]
[Site "Bodenmais"]
[Date "2019.08.03"]
[Round "8.16"]
[White "Danninger, Jannik"]
[Black "Gruettner, Ralf"]
[Result "1-0"]
[ECO "C47"]
[WhiteElo "1842"]
[BlackElo "2118"]
[Annotator "NA"]
[PlyCount "60"]
[EventDate "2019.07.27"]
[EventCountry "GER"]
[SourceTitle "playchess.com"]
[Source "ChessBase"]
[SourceQuality "1"]
[TimeControl "40/5400+30:1800+30"]

1. e4 {[%emt 0:00:00]} Nf6 {[%emt 0:00:00]} 2. Nc3 {[%emt 0:01:35]} e5 {[%emt 0:00:00]} 3. Nf3 {[%emt 0:00:18]} Nc6 {[%emt 0:00:00]} 4. d4 {[%emt 0:00:09]} exd4 {[%emt 0:00:06]} 5. Nxd4 {[%emt 0:00:06]} Bb4 {[%emt 0:04:13]} 6. Nxc6 {[%emt 0:00:09]} bxc6 {[%emt 0:00:58]} 7. Bd3 {[%emt 0:00:05]} O-O {[%emt 0:01:13]} 8. O-O {[%emt 0:00:07]} d5 {[%emt 0:00:55]} 9. exd5 {[%emt 0:00:09]} cxd5 {[%emt 0:00:17]} 10. Bg5 {[%emt 0:01:07]} c6 {[%emt 0:01:37]} 11. Qf3 {[%emt 0:02:04]} Be7 {[%emt 0:00:50]} 12. h3 {[%emt 0:01:54]} Be6 {[%emt 0:03:11]} 13. Ne2 {[%emt 0:02:07]} Nd7 {[%emt 0:04:46]} 14. Qh5 {[%emt 0:05:29]} g6 {[%emt 0:04:11]} 15. Bxe7 {[%emt 0:05:58]} Qxe7 {[%emt 0:00:01]} 16. Qh6 {[%emt 0:01:18]} Rab8 {[%emt 0:16:32]} 17. b3 {[%emt 0:02:18]} c5 {[%emt 0:02:34]} 18. c3 {[%emt 0:04:01]} Qf6 {[%emt 0:03:18]} 19. Nf4 {[%emt 0:05:20]} Qxc3 {[%emt 0:19:42]} 20. Bxg6 {[%emt 0:00:38]} hxg6 {[%emt 0:01:07]} 21. Nxe6 {[%emt 0:01:14]} fxe6 {[%emt 0:04:05]} 22. Qxg6+ {[%emt 0:00:10]} Qg7 {[%emt 0:00:36]} 23. Qxe6+ {[%emt 0:00:08]} Qf7 {[%emt 0:01:09]} 24. Qg4+ {[%emt 0:00:38]} Kh8 {[%emt 0:01:57]} 25. Rad1 {[%emt 0:03:31]} Rb4 {[%emt 0:05:05]} 26. Qg5 {[%emt 0:01:59]} d4 {[%emt 0:06:57]} 27. Rd3 {[%emt 0:05:30]} Rb6 {[%emt 0:00:10]} 28. Rg3 {[%emt 0:02:13]} Rc6 {[%emt 0:12:56]} 29. Rg4 {[%emt 0:01:09]} Nf6 {[%emt 0:00:16]} 30. Rg3 Nd7 1-0

[Event "8. Arber-Schachopen 2019"]
[Site "Bodenmais"]
[Date "2019.08.03"]
[Round "8.17"]
[White "Peglau, Mirjam"]
[Black "Medunova, Vera"]
[Result "0-1"]
[ECO "B73"]
[WhiteElo "1759"]
[BlackElo "2093"]
[Annotator "NA"]
[PlyCount "152"]
[EventDate "2019.07.27"]
[EventCountry "GER"]
[SourceTitle "playchess.com"]
[Source "ChessBase"]
[SourceQuality "1"]
[TimeControl "40/5400+30:1800+30"]

1. e4 {[%emt 0:00:00]} c5 {[%emt 0:00:00]} 2. Nf3 {[%emt 0:00:00]} Nc6 {[%emt 0:00:00]} 3. Nc3 {[%emt 0:00:00]} d6 {[%emt 0:00:53]} 4. Be2 {[%emt 0:04:45]} Nf6 {[%emt 0:03:02]} 5. O-O {[%emt 0:00:39]} g6 {[%emt 0:02:21]} 6. d4 {[%emt 0:04:25]} cxd4 {[%emt 0:00:11]} 7. Nxd4 {[%emt 0:00:02]} Bg7 {[%emt 0:01:22]} 8. Be3 {[%emt 0:00:31]} O-O {[%emt 0:00:44]} 9. Qd2 {[%emt 0:01:32]} Bd7 {[%emt 0:07:29]} 10. f3 {[%emt 0:02:21]} a6 {[%emt 0:05:59]} 11. a4 {[%emt 0:00:29]} Rc8 {[%emt 0:00:59]} 12. Nxc6 {[%emt 0:03:17]} Bxc6 {[%emt 0:00:30]} 13. Nd5 {[%emt 0:05:02]} Nd7 {[%emt 0:08:19]} 14. c4 {[%emt 0:05:00]} Nc5 {[%emt 0:06:47]} 15. Bd1 {[%emt 0:11:43]} a5 {[%emt 0:13:39]} 16. Bd4 {[%emt 0:03:15]} Bxd4+ {[%emt 0:06:28]} 17. Qxd4 {[%emt 0:00:02]} Bxd5 {[%emt 0:00:46]} 18. exd5 {[%emt 0:01:39]} Qb6 {[%emt 0:01:10]} 19. Ra3 {[%emt 0:01:43]} Nxa4 {[%emt 0:02:18]} 20. Qxb6 {[%emt 0:02:50]} Nxb6 {[%emt 0:00:05]} 21. Rxa5 {[%emt 0:01:34]} Nxc4 {[%emt 0:00:51]} 22. Rb5 {[%emt 0:00:01]} Ne3 {[%emt 0:08:05]} 23. Re1 {[%emt 0:00:13]} Nxd1 {[%emt 0:00:17]} 24. Rxd1 {[%emt 0:00:02]} Rc7 {[%emt 0:00:08]} 25. Rd3 {[%emt 0:00:57]} Ra8 {[%emt 0:01:11]} 26. Kf2 {[%emt 0:01:14]} Kf8 {[%emt 0:00:30]} 27. Rdb3 {[%emt 0:01:46]} Ra7 {[%emt 0:00:09]} 28. R3b4 {[%emt 0:00:10]} h5 {[%emt 0:04:38]} 29. g4 {[%emt 0:00:34]} hxg4 {[%emt 0:00:06]} 30. fxg4 {[%emt 0:00:32]} g5 {[%emt 0:00:58]} 31. Kg3 {[%emt 0:00:42]} Ke8 {[%emt 0:06:20]} 32. h4 {[%emt 0:03:30]} gxh4+ {[%emt 0:00:33]} 33. Kxh4 {[%emt 0:00:02]} e6 {[%emt 0:00:55]} 34. dxe6 {[%emt 0:01:19]} fxe6 {[%emt 0:00:04]} 35. Kg5 {[%emt 0:02:26]} Kf7 {[%emt 0:08:18]} 36. Kh6 {[%emt 0:00:49]} e5 {[%emt 0:01:23]} 37. g5 {[%emt 0:00:20]} Ra1 {[%emt 0:01:35]} 38. Kh5 {[%emt 0:01:50]} Rh1+ {[%emt 0:04:25]} 39. Kg4 {[%emt 0:00:40]} Kg6 {[%emt 0:01:59]} 40. Rd5 {[%emt 0:00:26]} Rd7 {[%emt 0:03:12]} 41. Rb6 {[%emt 0:30:33]} Rg1+ {[%emt 0:31:02]} 42. Kf3 {[%emt 0:00:15]} Rf7+ {[%emt 0:00:00]} 43. Ke2 {[%emt 0:00:00]} Kxg5 {[%emt 0:00:00]} 44. Rdxd6 {[%emt 0:00:00]} Kf4 {[%emt 0:00:00]} 45. Rb4+ {[%emt 0:00:00]} Kf5 {[%emt 0:00:00]} 46. Rdb6 {[%emt 0:00:00]} Rgg7 {[%emt 0:00:00]} 47. R6b5 {[%emt 0:00:00]} Rh7 {[%emt 0:00:00]} 48. Kd3 {[%emt 0:00:00]} Rc7 {[%emt 0:00:00]} 49. Kd2 {[%emt 0:00:00]} Rcg7 {[%emt 0:00:00]} 50. Kc2 {[%emt 0:00:00]} Rd7 {[%emt 0:00:00]} 51. Kb3 {[%emt 0:00:00]} Rhe7 {[%emt 0:00:00]} 52. Kc3 {[%emt 0:00:00]} Kf6 {[%emt 0:00:00]} 53. Re4 {[%emt 0:00:00]} Rd6 {[%emt 0:00:10]} 54. b3 {[%emt 0:00:00]} b6 {[%emt 0:00:39]} 55. Kc2 {[%emt 0:00:00]} Rc7+ {[%emt 0:00:54]} 56. Kb2 {[%emt 0:00:00]} Re6 {[%emt 0:01:29]} 57. Rd5 {[%emt 0:00:00]} Kf5 {[%emt 0:00:47]} 58. Rb4 {[%emt 0:00:00]} Rc5 {[%emt 0:00:29]} 59. Rxc5 {[%emt 0:00:54]} bxc5 {[%emt 0:00:04]} 60. Rc4 {[%emt 0:00:14]} e4 {[%emt 0:01:24]} 61. Rxc5+ {[%emt 0:00:19]} Kf4 {[%emt 0:00:07]} 62. Kc2 {[%emt 0:08:16]} Rd6 {[%emt 0:00:25]} 63. Rc8 {[%emt 0:00:54]} e3 {[%emt 0:00:06]} 64. Rf8+ {[%emt 0:00:30]} Kg3 {[%emt 0:01:15]} 65. Rg8+ {[%emt 0:00:14]} Kf2 {[%emt 0:00:13]} 66. Rf8+ {[%emt 0:00:04]} Ke1 {[%emt 0:00:15]} 67. b4 {[%emt 0:02:42]} e2 {[%emt 0:01:18]} 68. b5 {[%emt 0:02:01]} Rd5 {[%emt 0:00:28]} 69. b6 {[%emt 0:01:11]} Rc5+ {[%emt 0:00:42]} 70. Kd3 {[%emt 0:00:46]} Rb5 {[%emt 0:01:16]} 71. Re8 {[%emt 0:06:53]} Rb3+ {[%emt 0:00:19]} 72. Kc2 {[%emt 0:00:15]} Rxb6 {[%emt 0:00:05]} 73. Rf8 {[%emt 0:00:08]} Rc6+ {[%emt 0:00:25]} 74. Kb1 {[%emt 0:00:26]} Rc4 {[%emt 0:00:28]} 75. Rh8 {[%emt 0:02:06]} Kd2 {[%emt 0:00:43]} 76. Rh2 {[%emt 0:00:37]} Kd1 {[%emt 0:00:35]} 0-1

[Event "8. Arber-Schachopen 2019"]
[Site "Bodenmais"]
[Date "2019.08.03"]
[Round "8.18"]
[White "Schmahl, Stephan"]
[Black "Navarro Gevers, Daniel"]
[Result "1-0"]
[ECO "A52"]
[WhiteElo "2101"]
[BlackElo "1813"]
[Annotator "NA"]
[PlyCount "115"]
[EventDate "2019.07.27"]
[EventCountry "GER"]
[SourceTitle "playchess.com"]
[Source "ChessBase"]
[SourceQuality "1"]
[TimeControl "40/5400+30:1800+30"]

1. d4 {[%emt 0:00:00]} Nf6 {[%emt 0:00:00]} 2. c4 {[%emt 0:00:00]} e5 {[%emt 0:00:00]} 3. dxe5 {[%emt 0:00:00]} Ng4 {[%emt 0:00:07]} 4. e3 {[%emt 0:00:15]} Nxe5 {[%emt 0:00:27]} 5. f4 {[%emt 0:00:03]} Nec6 {[%emt 0:01:35]} 6. Nf3 {[%emt 0:01:49]} Bb4+ {[%emt 0:02:19]} 7. Bd2 {[%emt 0:02:49]} Qe7 {[%emt 0:06:37]} 8. Kf2 {[%emt 0:06:27]} O-O {[%emt 0:07:55]} 9. Bd3 {[%emt 0:13:12]} d6 {[%emt 0:11:08]} 10. a3 {[%emt 0:12:10]} Bxd2 {[%emt 0:12:04]} 11. Qxd2 {[%emt 0:00:04]} f5 {[%emt 0:01:38]} 12. Nc3 {[%emt 0:01:54]} Nd7 {[%emt 0:03:25]} 13. Nd5 {[%emt 0:08:22]} Qd8 {[%emt 0:00:18]} 14. Qc2 {[%emt 0:04:31]} Nc5 {[%emt 0:14:00]} 15. Rhd1 {[%emt 0:08:17]} b6 {[%emt 0:04:52]} 16. Rac1 {[%emt 0:07:10]} Bb7 {[%emt 0:01:31]} 17. Bxf5 {[%emt 0:01:41]} h6 {[%emt 0:00:17]} 18. b4 {[%emt 0:01:20]} Nd7 {[%emt 0:00:57]} 19. b5 {[%emt 0:06:08]} Ne7 {[%emt 0:00:16]} 20. Be6+ {[%emt 0:01:13]} Kh8 {[%emt 0:00:15]} 21. Nxe7 {[%emt 0:13:31]} Qxe7 {[%emt 0:00:04]} 22. Bxd7 {[%emt 0:00:20]} Qxd7 {[%emt 0:00:05]} 23. Ne5 {[%emt 0:00:12]} Qd8 {[%emt 0:04:27]} 24. Ng6+ {[%emt 0:00:10]} Kg8 {[%emt 0:00:05]} 25. Nxf8 {[%emt 0:00:16]} Qh4+ {[%emt 0:00:02]} 26. Kg1 {[%emt 0:00:26]} Rxf8 {[%emt 0:00:04]} 27. Qf2 {[%emt 0:00:39]} Qg4 {[%emt 0:00:43]} 28. h3 {[%emt 0:01:37]} Qe6 {[%emt 0:00:38]} 29. Rd4 {[%emt 0:00:18]} Rf6 {[%emt 0:00:59]} 30. Kh2 {[%emt 0:00:55]} Qf5 {[%emt 0:02:19]} 31. g4 {[%emt 0:01:49]} Qd7 {[%emt 0:00:01]} 32. Rcd1 {[%emt 0:01:27]} Re6 {[%emt 0:00:40]} 33. f5 {[%emt 0:01:43]} Rf6 {[%emt 0:01:47]} 34. Qf4 {[%emt 0:00:23]} a6 {[%emt 0:00:24]} 35. a4 {[%emt 0:00:24]} a5 {[%emt 0:00:23]} 36. R1d2 {[%emt 0:01:07]} Kh7 {[%emt 0:00:51]} 37. Rf2 {[%emt 0:01:18]} Qf7 {[%emt 0:01:04]} 38. h4 {[%emt 0:00:38]} Bc8 {[%emt 0:01:18]} 39. e4 {[%emt 0:00:34]} Kg8 {[%emt 0:00:32]} 40. Kg3 {[%emt 0:01:20]} Qe7 {[%emt 0:02:32]} 41. g5 {[%emt 0:07:04]} hxg5 {[%emt 0:00:00]} 42. hxg5 {[%emt 0:00:29]} Rf8 {[%emt 0:00:27]} 43. g6 {[%emt 0:04:27]} Re8 {[%emt 0:00:09]} 44. Rh2 {[%emt 0:03:49]} Qe5 {[%emt 0:03:44]} 45. Qxe5 {[%emt 0:01:27]} Rxe5 {[%emt 0:00:01]} 46. Kf4 {[%emt 0:00:59]} Bb7 {[%emt 0:00:08]} 47. Rh3 {[%emt 0:00:32]} Ba8 {[%emt 0:00:33]} 48. Re3 {[%emt 0:02:46]} Bb7 {[%emt 0:00:25]} 49. Rd5 {[%emt 0:00:58]} Re7 {[%emt 0:08:47]} 50. e5 {[%emt 0:00:06]} Bxd5 {[%emt 0:00:47]} 51. cxd5 {[%emt 0:00:05]} Kf8 {[%emt 0:02:29]} 52. e6 {[%emt 0:07:57]} Kg8 {[%emt 0:00:51]} 53. f6 {[%emt 0:00:26]} gxf6 {[%emt 0:00:44]} 54. Kf5 {[%emt 0:00:03]} Re8 {[%emt 0:04:17]} 55. e7 {[%emt 0:02:54]} Kg7 {[%emt 0:00:09]} 56. Re1 {[%emt 0:00:34]} c5 {[%emt 0:01:53]} 57. dxc6 {[%emt 0:00:35]} d5 {[%emt 0:00:03]} 58. c7 {[%emt 0:00:37]} 1-0

[Event "8. Arber-Schachopen 2019"]
[Site "Bodenmais"]
[Date "2019.08.03"]
[Round "8.19"]
[White "Kasueschke, Lars"]
[Black "Pohl-Kuemmel, Jens-Uwe"]
[Result "1-0"]
[ECO "A15"]
[WhiteElo "1934"]
[BlackElo "2288"]
[Annotator "NA"]
[PlyCount "103"]
[EventDate "2019.07.27"]
[EventCountry "GER"]
[SourceTitle "playchess.com"]
[Source "ChessBase"]
[SourceQuality "1"]
[TimeControl "40/5400+30:1800+30"]

1. c4 {[%emt 0:00:12]} Nf6 {[%emt 0:00:00]} 2. g3 {[%emt 0:00:19]} g6 {[%emt 0:00:37]} 3. Bg2 {[%emt 0:00:19]} Bg7 {[%emt 0:00:10]} 4. Nc3 {[%emt 0:00:32]} O-O {[%emt 0:00:15]} 5. d3 {[%emt 0:00:31]} d6 {[%emt 0:00:58]} 6. Rb1 {[%emt 0:00:35]} a5 {[%emt 0:04:23]} 7. a3 {[%emt 0:00:50]} Nbd7 {[%emt 0:05:38]} 8. b4 {[%emt 0:05:44]} axb4 {[%emt 0:01:05]} 9. axb4 {[%emt 0:00:12]} e5 {[%emt 0:00:31]} 10. Nf3 {[%emt 0:03:21]} Re8 {[%emt 0:05:28]} 11. Nd2 {[%emt 0:03:31]} Nh5 {[%emt 0:04:09]} 12. Bb2 {[%emt 0:03:22]} f5 {[%emt 0:12:45]} 13. Ra1 {[%emt 0:02:57]} Rxa1 {[%emt 0:03:29]} 14. Qxa1 {[%emt 0:00:13]} Ndf6 {[%emt 0:03:02]} 15. b5 {[%emt 0:14:01]} Bh6 {[%emt 0:12:55]} 16. Nd5 {[%emt 0:05:48]} Nxd5 {[%emt 0:13:43]} 17. Bxd5+ {[%emt 0:02:55]} Kf8 {[%emt 0:00:15]} 18. Bc3 {[%emt 0:09:27]} Nf6 {[%emt 0:09:55]} 19. Bg2 {[%emt 0:02:56]} Kg8 {[%emt 0:02:34]} 20. Qb2 {[%emt 0:11:28]} b6 {[%emt 0:04:13]} 21. O-O {[%emt 0:00:53]} Be6 {[%emt 0:01:06]} 22. Ra1 {[%emt 0:02:04]} Nd7 {[%emt 0:00:34]} 23. Bc6 {[%emt 0:03:21]} Rf8 {[%emt 0:00:15]} 24. Ra8 {[%emt 0:00:25]} Qxa8 {[%emt 0:00:36]} 25. Bxa8 {[%emt 0:00:07]} Rxa8 {[%emt 0:00:04]} 26. Nb3 {[%emt 0:04:09]} Bf7 {[%emt 0:01:56]} 27. Qc2 {[%emt 0:04:16]} Bf8 {[%emt 0:03:04]} 28. Bb2 {[%emt 0:04:21]} Ra7 {[%emt 0:01:41]} 29. f4 {[%emt 0:01:06]} Bg7 {[%emt 0:01:25]} 30. e3 {[%emt 0:03:13]} Ra2 {[%emt 0:01:08]} 31. Qb1 {[%emt 0:00:12]} Ra4 {[%emt 0:00:02]} 32. Nd2 {[%emt 0:02:40]} h6 {[%emt 0:01:26]} 33. Qc2 {[%emt 0:00:52]} Ra8 {[%emt 0:00:24]} 34. fxe5 {[%emt 0:01:27]} dxe5 {[%emt 0:00:54]} 35. d4 {[%emt 0:01:34]} e4 {[%emt 0:00:55]} 36. Nb3 {[%emt 0:02:10]} h5 {[%emt 0:01:00]} 37. c5 {[%emt 0:02:36]} Ra2 {[%emt 0:01:23]} 38. c6 {[%emt 0:02:19]} Nf6 {[%emt 0:00:41]} 39. Nd2 {[%emt 0:00:25]} Ng4 {[%emt 0:01:07]} 40. Nc4 {[%emt 0:02:03]} Bh6 {[%emt 0:01:10]} 41. Qc3 {[%emt 0:01:50]} Bd5 {[%emt 0:04:55]} 42. h3 {[%emt 0:05:44]} Nxe3 {[%emt 0:13:30]} 43. Nxe3 {[%emt 0:00:10]} Bxe3+ {[%emt 0:00:06]} 44. Qxe3 {[%emt 0:00:07]} Rxb2 {[%emt 0:00:03]} 45. Qg5 {[%emt 0:02:36]} Bf7 {[%emt 0:04:28]} 46. Qd8+ {[%emt 0:01:05]} Kg7 {[%emt 0:00:07]} 47. Qxc7 {[%emt 0:00:12]} Rxb5 {[%emt 0:00:04]} 48. Qe7 {[%emt 0:06:00]} Rb1+ {[%emt 0:05:38]} 49. Kf2 {[%emt 0:00:10]} Rb2+ {[%emt 0:00:59]} 50. Ke1 {[%emt 0:00:18]} Rc2 {[%emt 0:01:11]} 51. c7 {[%emt 0:00:08]} b5 {[%emt 0:00:37]} 52. Qd7 {[%emt 0:00:38]} 1-0

[Event "8. Arber-Schachopen 2019"]
[Site "Bodenmais"]
[Date "2019.08.03"]
[Round "8.20"]
[White "Vennemann, Juergen"]
[Black "Schmid, Wolfgang"]
[Result "1/2-1/2"]
[ECO "A51"]
[WhiteElo "1925"]
[BlackElo "2162"]
[Annotator "NA"]
[PlyCount "43"]
[EventDate "2019.07.27"]
[EventCountry "GER"]
[SourceTitle "playchess.com"]
[Source "ChessBase"]
[SourceQuality "1"]
[TimeControl "40/5400+30:1800+30"]

1. d4 {[%emt 0:00:00]} Nf6 {[%emt 0:00:00]} 2. c4 {[%emt 0:00:01]} e5 {[%emt 0:00:54]} 3. dxe5 {[%emt 0:00:28]} Ne4 {[%emt 0:00:28]} 4. e3 {[%emt 0:08:18]} Bb4+ {[%emt 0:06:03]} 5. Nd2 {[%emt 0:06:58]} Nc6 {[%emt 0:03:31]} 6. Ngf3 {[%emt 0:02:27]} Qe7 {[%emt 0:03:18]} 7. a3 {[%emt 0:02:45]} Bxd2+ {[%emt 0:07:58]} 8. Nxd2 {[%emt 0:01:56]} Nxd2 {[%emt 0:00:37]} 9. Bxd2 {[%emt 0:00:28]} Nxe5 {[%emt 0:00:37]} 10. Be2 {[%emt 0:02:13]} O-O {[%emt 0:06:36]} 11. O-O {[%emt 0:03:43]} d6 {[%emt 0:00:10]} 12. f4 {[%emt 0:05:38]} Nd7 {[%emt 0:02:59]} 13. Bd3 {[%emt 0:27:20]} f5 {[%emt 0:14:00]} 14. Rf3 {[%emt 0:04:48]} Nc5 {[%emt 0:02:26]} 15. Bc2 {[%emt 0:00:41]} Rf6 {[%emt 0:14:11]} 16. Bc3 {[%emt 0:03:44]} Rg6 {[%emt 0:02:11]} 17. Qd4 {[%emt 0:09:35]} Bd7 {[%emt 0:10:34]} 18. b4 {[%emt 0:01:03]} Ne4 {[%emt 0:02:01]} 19. Bxe4 {[%emt 0:01:52]} Qxe4 {[%emt 0:01:19]} 20. Qxe4 {[%emt 0:01:56]} fxe4 {[%emt 0:00:02]} 21. Rf2 {[%emt 0:00:53]} Bf5 {[%emt 0:05:29]} 22. Rd1 {[%emt 0:00:24]} 1/2-1/2

[Event "8. Arber-Schachopen 2019"]
[Site "Bodenmais"]
[Date "2019.08.03"]
[Round "8.21"]
[White "Zepke, Armin"]
[Black "Weisheit, Erik"]
[Result "0-1"]
[ECO "A45"]
[WhiteElo "2122"]
[BlackElo "1862"]
[Annotator "NA"]
[PlyCount "80"]
[EventDate "2019.07.27"]
[EventCountry "GER"]
[SourceTitle "playchess.com"]
[Source "ChessBase"]
[SourceQuality "1"]
[TimeControl "40/5400+30:1800+30"]

1. d4 {[%emt 0:00:00]} Nf6 {[%emt 0:00:00]} 2. Bf4 {[%emt 0:00:00]} e6 {[%emt 0:00:00]} 3. e3 {[%emt 0:00:00]} b6 {[%emt 0:00:02]} 4. Nd2 {[%emt 0:00:16]} c5 {[%emt 0:00:25]} 5. c3 {[%emt 0:00:08]} Be7 {[%emt 0:00:12]} 6. h3 {[%emt 0:00:30]} O-O {[%emt 0:02:05]} 7. Ngf3 {[%emt 0:00:09]} d5 {[%emt 0:00:43]} 8. Bd3 {[%emt 0:00:55]} Ba6 {[%emt 0:00:23]} 9. Bxa6 {[%emt 0:01:24]} Nxa6 {[%emt 0:00:07]} 10. O-O {[%emt 0:00:35]} b5 {[%emt 0:03:40]} 11. Qe2 {[%emt 0:04:34]} Qb6 {[%emt 0:01:49]} 12. e4 {[%emt 0:05:06]} dxe4 {[%emt 0:12:19]} 13. Nxe4 {[%emt 0:00:30]} cxd4 {[%emt 0:01:00]} 14. Nxd4 {[%emt 0:02:34]} Nxe4 {[%emt 0:02:11]} 15. Qxe4 {[%emt 0:00:14]} Nc5 {[%emt 0:07:52]} 16. Qe2 {[%emt 0:01:45]} a6 {[%emt 0:03:34]} 17. Rad1 {[%emt 0:04:25]} Bf6 {[%emt 0:02:58]} 18. Nb3 {[%emt 0:05:51]} Na4 {[%emt 0:07:56]} 19. Rd6 {[%emt 0:14:35]} Qc7 {[%emt 0:04:01]} 20. Rfd1 {[%emt 0:06:07]} Qc4 {[%emt 0:01:01]} 21. Qd2 {[%emt 0:07:04]} Nxb2 {[%emt 0:01:25]} 22. Qxb2 {[%emt 0:09:50]} Qxf4 {[%emt 0:00:21]} 23. Rd7 {[%emt 0:00:08]} Qc4 {[%emt 0:05:25]} 24. Na5 {[%emt 0:03:23]} Qc5 {[%emt 0:04:05]} 25. Qb4 {[%emt 0:03:16]} Qxc3 {[%emt 0:10:26]} 26. Qxc3 {[%emt 0:00:31]} Bxc3 {[%emt 0:00:07]} 27. Nc6 {[%emt 0:00:06]} g6 {[%emt 0:00:34]} 28. Rc7 {[%emt 0:02:45]} Kg7 {[%emt 0:01:43]} 29. Rdd7 {[%emt 0:01:31]} a5 {[%emt 0:03:44]} 30. Rb7 {[%emt 0:09:40]} b4 {[%emt 0:11:00]} 31. h4 {[%emt 0:01:19]} e5 {[%emt 0:05:27]} 32. g3 {[%emt 0:08:30]} Ra6 {[%emt 0:01:39]} 33. Ne7 {[%emt 0:05:37]} Rf6 {[%emt 0:02:43]} 34. Nd5 {[%emt 0:01:03]} Rf3 {[%emt 0:00:30]} 35. Kg2 {[%emt 0:00:27]} Rd3 {[%emt 0:00:12]} 36. Nxc3 {[%emt 0:00:18]} Rxc3 {[%emt 0:00:30]} 37. Rd5 {[%emt 0:02:24]} Ra3 {[%emt 0:00:26]} 38. Rxe5 {[%emt 0:00:06]} Rxa2 {[%emt 0:00:09]} 39. Ra7 {[%emt 0:00:40]} a4 {[%emt 0:03:43]} 40. Rea5 {[%emt 0:00:01]} a3 {[%emt 0:00:50]} 0-1

[Event "8. Arber-Schachopen 2019"]
[Site "Bodenmais"]
[Date "2019.08.03"]
[Round "8.22"]
[White "Heiduk, Christoph"]
[Black "Fuchs, Michael"]
[Result "0-1"]
[ECO "A50"]
[WhiteElo "1870"]
[BlackElo "2114"]
[Annotator "NA"]
[PlyCount "22"]
[EventDate "2019.07.27"]
[EventCountry "GER"]
[SourceTitle "playchess.com"]
[Source "ChessBase"]
[SourceQuality "1"]
[TimeControl "40/5400+30:1800+30"]

1. d4 {[%emt 0:00:00]} Nf6 {[%emt 0:00:00]} 2. c4 {[%emt 0:00:00]} c6 {[%emt 0:00:00]} 3. Nc3 {[%emt 0:00:09]} d5 {[%emt 0:00:00]} 4. cxd5 {[%emt 0:00:17]} cxd5 {[%emt 0:00:14]} 5. Bf4 {[%emt 0:00:11]} Nc6 {[%emt 0:00:39]} 6. e3 {[%emt 0:01:00]} a6 {[%emt 0:04:17]} 7. Nf3 {[%emt 0:00:55]} Nh5 {[%emt 0:01:16]} 8. Bg5 {[%emt 0:03:05]} h6 {[%emt 0:00:16]} 9. Bh4 {[%emt 0:00:05]} g5 {[%emt 0:00:33]} 10. Ne5 {[%emt 0:07:33]} Nxe5 {[%emt 0:06:55]} 11. Qxh5 {[%emt 0:01:55]} Bg4 {[%emt 0:00:30]} 0-1

[Event "8. Arber-Schachopen 2019"]
[Site "Bodenmais"]
[Date "2019.08.03"]
[Round "8.23"]
[White "Albrecht, Manuel"]
[Black "Titz, Heimo"]
[Result "1-0"]
[ECO "B44"]
[WhiteElo "1833"]
[BlackElo "2048"]
[Annotator "NA"]
[PlyCount "78"]
[EventDate "2019.07.27"]
[EventCountry "GER"]
[SourceTitle "playchess.com"]
[Source "ChessBase"]
[SourceQuality "1"]
[TimeControl "40/5400+30:1800+30"]

1. e4 {[%emt 0:00:00]} c5 {[%emt 0:00:00]} 2. Nf3 {[%emt 0:00:00]} e6 {[%emt 0:00:00]} 3. d4 {[%emt 0:01:53]} cxd4 {[%emt 0:00:00]} 4. Nxd4 {[%emt 0:00:04]} Nc6 {[%emt 0:00:07]} 5. Nxc6 {[%emt 0:00:06]} bxc6 {[%emt 0:00:41]} 6. c4 {[%emt 0:00:06]} Nf6 {[%emt 0:01:45]} 7. Nc3 {[%emt 0:00:06]} d6 {[%emt 0:11:54]} 8. Bf4 {[%emt 0:07:20]} e5 {[%emt 0:06:32]} 9. Bg5 {[%emt 0:01:53]} Be7 {[%emt 0:00:42]} 10. Bxf6 {[%emt 0:00:49]} Bxf6 11. Be2 {[%emt 0:00:23]} O-O {[%emt 0:01:41]} 12. O-O {[%emt 0:00:12]} Qc7 {[%emt 0:02:39]} 13. Rc1 {[%emt 0:06:30]} Rb8 {[%emt 0:02:23]} 14. b3 {[%emt 0:00:57]} Rd8 {[%emt 0:02:05]} 15. Bg4 {[%emt 0:03:33]} g6 {[%emt 0:22:23]} 16. Qe2 {[%emt 0:07:30]} h5 {[%emt 0:05:30]} 17. Bxc8 {[%emt 0:03:53]} Qxc8 {[%emt 0:02:51]} 18. Rcd1 {[%emt 0:03:40]} Qe6 {[%emt 0:03:23]} 19. Rd3 {[%emt 0:02:23]} Rd7 {[%emt 0:04:13]} 20. Rfd1 {[%emt 0:00:19]} Bd8 {[%emt 0:06:23]} 21. Na4 {[%emt 0:08:30]} Bb6 {[%emt 0:07:45]} 22. c5 {[%emt 0:07:31]} Bc7 {[%emt 0:04:06]} 23. cxd6 {[%emt 0:02:58]} Rxd6 {[%emt 0:00:13]} 24. Rxd6 {[%emt 0:00:50]} Bxd6 {[%emt 0:00:28]} 25. Qc2 {[%emt 0:00:59]} Ba3 {[%emt 0:04:17]} 26. Nc5 {[%emt 0:02:28]} Qe7 {[%emt 0:02:30]} 27. Nd3 {[%emt 0:04:55]} c5 {[%emt 0:01:36]} 28. Nb2 {[%emt 0:04:43]} Bxb2 {[%emt 0:01:25]} 29. Qxb2 {[%emt 0:00:02]} Rd8 {[%emt 0:00:22]} 30. Rd5 {[%emt 0:01:26]} Rxd5 {[%emt 0:00:14]} 31. exd5 {[%emt 0:00:04]} Qd6 {[%emt 0:00:48]} 32. Qd2 {[%emt 0:00:16]} Kf8 {[%emt 0:01:14]} 33. f3 {[%emt 0:07:51]} Ke7 {[%emt 0:00:31]} 34. Kf2 {[%emt 0:03:56]} Qb6 {[%emt 0:02:49]} 35. Qg5+ {[%emt 0:02:32]} Qf6 {[%emt 0:00:38]} 36. Qe3 {[%emt 0:05:14]} Qd6 {[%emt 0:01:02]} 37. Qg5+ {[%emt 0:04:56]} Kd7 {[%emt 0:00:25]} 38. Qd2 {[%emt 0:00:19]} Qb6 {[%emt 0:01:20]} 39. Qe3 {[%emt 0:03:48]} Kd6 {[%emt 0:00:00]} 1-0